[Event "Titled Tuesday Blitz March 29 Late 2022"]
[White "Paravyan, David"]
[Black "Fernandez, Daniel Howard"]
[WhiteFideId "4194985"]
[BlackFideId "5801605"]
[WhiteElo "2569"]
[BlackElo "2466"]
[Result "1-0"]
[Round "05"]
[TimeControl "180+1"]
[Date "2022.03.29"]
[WhiteClock "0:00:19"]
[BlackClock "0:00:05"]

1. e4 {[%clk 0:03:00]}  c5 {[%clk 0:02:59]} 2. Nf3 {[%clk 0:02:56]}  d6 {[%clk 0:03:00]} 3. d4 {[%clk 0:02:57]}  cxd4 {[%clk 0:03:01]} 4. Nxd4 {[%clk 0:02:57]}  Nf6 {[%clk 0:03:01]} 5. Nc3 {[%clk 0:02:57]}  a6 {[%clk 0:03:02]} 6. Bg5 {[%clk 0:02:57]}  e6 {[%clk 0:03:01]} 7. f4 {[%clk 0:02:57]}  h6 {[%clk 0:02:53]} 8. Bh4 {[%clk 0:02:56]}  Be7 {[%clk 0:02:49]} 9. Qf3 {[%clk 0:02:54]}  Qc7 {[%clk 0:02:43]} 10. Bd3 {[%clk 0:02:42]}  Nbd7 {[%clk 0:02:41]} 11. O-O {[%clk 0:02:40]}  b5 {[%clk 0:02:38]} 12. a3 {[%clk 0:02:40]}  Bb7 {[%clk 0:02:37]} 13. Rae1 {[%clk 0:02:35]}  O-O {[%clk 0:02:37]} 14. Kh1 {[%clk 0:02:27]}  Rac8 {[%clk 0:02:36]} 15. Qh3 {[%clk 0:02:24]}  Nc5 {[%clk 0:02:35]} 16. Bf2 {[%clk 0:02:10]}  Nxd3 {[%clk 0:02:27]} 17. cxd3 {[%clk 0:02:11]}  Rfe8 {[%clk 0:02:27]} 18. Rc1 {[%clk 0:02:03]}  Qb8 {[%clk 0:02:27]} 19. Be3 {[%clk 0:01:57]}  Bf8 {[%clk 0:02:27]} 20. Rc2 {[%clk 0:01:25]}  Ba8 {[%clk 0:01:45]} 21. b4 {[%clk 0:01:20]}  Rc7 {[%clk 0:01:42]} 22. Rfc1 {[%clk 0:01:17]}  Rec8 {[%clk 0:01:42]} 23. Qf3 {[%clk 0:01:11]}  Qb7 {[%clk 0:01:36]} 24. h3 {[%clk 0:01:06]}  Nd7 {[%clk 0:01:35]} 25. Nb3 {[%clk 0:01:00]}  Qb8 {[%clk 0:01:33]} 26. Qd1 {[%clk 0:00:58]}  Be7 {[%clk 0:01:17]} 27. Na5 {[%clk 0:00:56]}  Bf6 {[%clk 0:01:15]} 28. Ne2 {[%clk 0:00:56]}  Nb6 {[%clk 0:01:06]} 29. Bd4 {[%clk 0:00:52]}  Be7 {[%clk 0:01:00]} 30. Qd2 {[%clk 0:00:46]}  Na4 {[%clk 0:00:59]} 31. Ba1 {[%clk 0:00:46]}  Bd8 {[%clk 0:00:47]} 32. Nb3 {[%clk 0:00:42]}  Rxc2 {[%clk 0:00:47]} 33. Rxc2 {[%clk 0:00:43]}  Rxc2 {[%clk 0:00:47]} 34. Qxc2 {[%clk 0:00:44]}  Qc7 {[%clk 0:00:47]} 35. Qd2 {[%clk 0:00:42]}  Qc6 {[%clk 0:00:41]} 36. Na5 {[%clk 0:00:37]}  Bxa5 {[%clk 0:00:39]} 37. bxa5 {[%clk 0:00:38]}  Qc5 {[%clk 0:00:40]} 38. Qb4 {[%clk 0:00:32]}  Qf2 {[%clk 0:00:32]} 39. Qd4 {[%clk 0:00:30]}  Qxd4 {[%clk 0:00:31]} 40. Bxd4 {[%clk 0:00:28]}  Nc5 {[%clk 0:00:32]} 41. Nc1 {[%clk 0:00:24]}  Kf8 {[%clk 0:00:29]} 42. Kg1 {[%clk 0:00:24]}  g6 {[%clk 0:00:29]} 43. Kf2 {[%clk 0:00:24]}  h5 {[%clk 0:00:28]} 44. g4 {[%clk 0:00:24]}  hxg4 {[%clk 0:00:28]} 45. hxg4 {[%clk 0:00:24]}  Ke7 {[%clk 0:00:28]} 46. g5 {[%clk 0:00:24]}  Bb7 {[%clk 0:00:25]} 47. Ke3 {[%clk 0:00:20]}  Kd7 {[%clk 0:00:25]} 48. Kd2 {[%clk 0:00:20]}  Ke7 {[%clk 0:00:26]} 49. Kc2 {[%clk 0:00:18]}  Kd7 {[%clk 0:00:25]} 50. Bc3 {[%clk 0:00:18]}  d5 {[%clk 0:00:23]} 51. Bb4 {[%clk 0:00:16]}  Kc6 {[%clk 0:00:19]} 52. e5 {[%clk 0:00:17]}  Nd7 {[%clk 0:00:16]} 53. Nb3 {[%clk 0:00:17]}  Kc7 {[%clk 0:00:16]} 54. Kc3 {[%clk 0:00:17]}  Kc6 {[%clk 0:00:16]} 55. Bd6 {[%clk 0:00:17]}  Bc8 {[%clk 0:00:14]} 56. Kb4 {[%clk 0:00:18]}  Kb7 {[%clk 0:00:12]} 57. Be7 {[%clk 0:00:17]}  Kc6 {[%clk 0:00:12]} 58. Nd2 {[%clk 0:00:17]}  Bb7 {[%clk 0:00:11]} 59. Nf3 {[%clk 0:00:17]}  Kc7 {[%clk 0:00:11]} 60. Nd4 {[%clk 0:00:17]}  Bc8 {[%clk 0:00:08]} 61. Ne2 {[%clk 0:00:17]}  Bb7 {[%clk 0:00:08]} 62. Bd6+ {[%clk 0:00:16]}  Kd8 {[%clk 0:00:07]} 63. Nd4 {[%clk 0:00:17]}  Kc8 {[%clk 0:00:08]} 64. Nf3 {[%clk 0:00:17]}  Kd8 {[%clk 0:00:07]} 65. Kc3 {[%clk 0:00:18]}  Kc8 {[%clk 0:00:08]} 66. Kd4 {[%clk 0:00:18]}  Kd8 {[%clk 0:00:08]} 67. Nh2 {[%clk 0:00:19]}  Kc8 {[%clk 0:00:09]} 68. Ng4 {[%clk 0:00:19]}  Kd8 {[%clk 0:00:10]} 69. Nh6 {[%clk 0:00:19]}  Ke8 {[%clk 0:00:09]} 70. Ng8 {[%clk 0:00:20]}  Kd8 {[%clk 0:00:06]} 71. Be7+ {[%clk 0:00:20]}  Kc7 {[%clk 0:00:06]} 72. Nh6 {[%clk 0:00:20]}  Nb8 {[%clk 0:00:05]} 73. Bd6+ {[%clk 0:00:19]} 1-0


[Site "https://www.chess.com"]

[Event "Titled Tuesday Blitz March 29 Late 2022"]
[White "Petrovic, Aleksa"]
[Black "Rasulov, Vugar"]
[WhiteFideId "967629"]
[BlackFideId "13402390"]
[WhiteElo "2245"]
[BlackElo "2560"]
[Result "1/2-1/2"]
[Round "05"]
[TimeControl "180+1"]
[Date "2022.03.29"]
[WhiteClock "0:00:06"]
[BlackClock "0:00:30"]

1. Nf3 {[%clk 0:03:00]}  Nf6 {[%clk 0:02:59]} 2. c4 {[%clk 0:03:00]}  g6 {[%clk 0:02:59]} 3. Nc3 {[%clk 0:03:00]}  Bg7 {[%clk 0:03:00]} 4. e4 {[%clk 0:03:00]}  d6 {[%clk 0:03:00]} 5. d4 {[%clk 0:03:00]}  O-O {[%clk 0:03:01]} 6. Be2 {[%clk 0:03:01]}  Bg4 {[%clk 0:02:59]} 7. Be3 {[%clk 0:03:00]}  Nfd7 {[%clk 0:03:00]} 8. Ng1 {[%clk 0:03:01]}  Bxe2 {[%clk 0:02:59]} 9. Ngxe2 {[%clk 0:03:01]}  c5 {[%clk 0:02:59]} 10. O-O {[%clk 0:03:01]}  cxd4 {[%clk 0:02:58]} 11. Nxd4 {[%clk 0:03:01]}  Nc6 {[%clk 0:02:58]} 12. Rc1 {[%clk 0:02:58]}  a6 {[%clk 0:02:57]} 13. Qd2 {[%clk 0:02:44]}  Rc8 {[%clk 0:02:56]} 14. b3 {[%clk 0:02:33]}  Qa5 {[%clk 0:02:52]} 15. Rfd1 {[%clk 0:02:20]}  Rfe8 {[%clk 0:02:48]} 16. Nxc6 {[%clk 0:02:06]}  bxc6 {[%clk 0:02:46]} 17. Na4 {[%clk 0:02:04]}  Qxd2 {[%clk 0:02:40]} 18. Rxd2 {[%clk 0:02:05]}  c5 {[%clk 0:02:31]} 19. f3 {[%clk 0:01:49]}  Rb8 {[%clk 0:02:29]} 20. Rd3 {[%clk 0:01:28]}  Ne5 {[%clk 0:02:24]} 21. Rdd1 {[%clk 0:01:27]}  Rec8 {[%clk 0:02:19]} 22. Kf2 {[%clk 0:01:21]}  Kf8 {[%clk 0:02:15]} 23. Ke2 {[%clk 0:01:21]}  Ke8 {[%clk 0:02:15]} 24. h3 {[%clk 0:01:19]}  Nc6 {[%clk 0:02:15]} 25. Kf2 {[%clk 0:01:08]}  a5 {[%clk 0:02:04]} 26. Bd2 {[%clk 0:01:05]}  f5 {[%clk 0:01:58]} 27. exf5 {[%clk 0:01:03]}  gxf5 {[%clk 0:01:59]} 28. Bc3 {[%clk 0:01:02]}  Bxc3 {[%clk 0:01:50]} 29. Rxc3 {[%clk 0:00:52]}  Kf7 {[%clk 0:01:51]} 30. Re3 {[%clk 0:00:46]}  Nd4 {[%clk 0:01:49]} 31. Nc3 {[%clk 0:00:41]}  e5 {[%clk 0:01:48]} 32. Nb5 {[%clk 0:00:35]}  Rd8 {[%clk 0:01:33]} 33. a4 {[%clk 0:00:33]}  Kf6 {[%clk 0:01:31]} 34. f4 {[%clk 0:00:26]}  exf4 {[%clk 0:01:22]} 35. Red3 {[%clk 0:00:24]}  d5 {[%clk 0:01:21]} 36. Nxd4 {[%clk 0:00:20]}  dxc4 {[%clk 0:01:21]} 37. bxc4 {[%clk 0:00:18]}  cxd4 {[%clk 0:01:21]} 38. Rxd4 {[%clk 0:00:19]}  Rxd4 {[%clk 0:01:17]} 39. Rxd4 {[%clk 0:00:20]}  Ke5 {[%clk 0:01:17]} 40. Rd5+ {[%clk 0:00:19]}  Ke4 {[%clk 0:01:18]} 41. Rxa5 {[%clk 0:00:17]}  Rb2+ {[%clk 0:01:18]} 42. Kg1 {[%clk 0:00:18]}  Rc2 {[%clk 0:01:15]} 43. Rc5 {[%clk 0:00:15]}  f3 {[%clk 0:01:09]} 44. gxf3+ {[%clk 0:00:15]}  Kf4 {[%clk 0:01:10]} 45. Kf1 {[%clk 0:00:13]}  h5 {[%clk 0:01:09]} 46. Ke1 {[%clk 0:00:12]}  h4 {[%clk 0:01:08]} 47. a5 {[%clk 0:00:11]}  Ra2 {[%clk 0:01:06]} 48. Kf1 {[%clk 0:00:10]}  Rh2 {[%clk 0:01:00]} 49. a6 {[%clk 0:00:09]}  Ra2 {[%clk 0:01:00]} 50. Rc6 {[%clk 0:00:06]}  Kxf3 {[%clk 0:01:00]} 51. Ke1 {[%clk 0:00:05]}  f4 {[%clk 0:01:00]} 52. c5 {[%clk 0:00:04]}  Kg2 {[%clk 0:00:52]} 53. Rg6+ {[%clk 0:00:04]}  Kxh3 {[%clk 0:00:53]} 54. c6 {[%clk 0:00:03]}  Ra1+ {[%clk 0:00:41]} 55. Kf2 {[%clk 0:00:03]}  Rxa6 {[%clk 0:00:37]} 56. Kf3 {[%clk 0:00:04]}  Kh2 {[%clk 0:00:30]} 57. Kxf4 {[%clk 0:00:04]}  h3 {[%clk 0:00:31]} 58. Ke5 {[%clk 0:00:04]}  Kh1 {[%clk 0:00:29]} 59. Kd6 {[%clk 0:00:04]}  h2 {[%clk 0:00:28]} 60. Rh6 {[%clk 0:00:04]}  Kg2 {[%clk 0:00:28]} 61. Rxh2+ {[%clk 0:00:05]}  Kxh2 {[%clk 0:00:29]} 62. Kd7 {[%clk 0:00:05]}  Kg3 {[%clk 0:00:29]} 63. c7 {[%clk 0:00:05]}  Ra7 {[%clk 0:00:29]} 64. Kd8 {[%clk 0:00:06]}  Rxc7 {[%clk 0:00:30]} 65. Kxc7 {[%clk 0:00:06]} 1/2-1/2


[Site "https://www.chess.com"]

[Event "Titled Tuesday Blitz March 29 Late 2022"]
[White "Piliczewski, Bogusz"]
[Black "Kaganskiy, Gleb"]
[WhiteFideId "1104144"]
[BlackFideId "4132025"]
[WhiteElo "1896"]
[BlackElo "2165"]
[Result "1/2-1/2"]
[Round "05"]
[TimeControl "180+1"]
[Date "2022.03.30"]
[WhiteClock "0:02:12"]
[BlackClock "0:02:10"]

1. d4 {[%clk 0:03:00]}  Nf6 {[%clk 0:02:54]} 2. Nf3 {[%clk 0:03:01]}  b6 {[%clk 0:02:51]} 3. Bf4 {[%clk 0:03:01]}  Bb7 {[%clk 0:02:50]} 4. e3 {[%clk 0:03:00]}  d6 {[%clk 0:02:50]} 5. h3 {[%clk 0:03:00]}  g6 {[%clk 0:02:49]} 6. Be2 {[%clk 0:03:00]}  Bg7 {[%clk 0:02:49]} 7. O-O {[%clk 0:03:01]}  Nbd7 {[%clk 0:02:48]} 8. c4 {[%clk 0:03:00]}  c5 {[%clk 0:02:46]} 9. Nc3 {[%clk 0:03:00]}  O-O {[%clk 0:02:44]} 10. a3 {[%clk 0:02:56]}  Re8 {[%clk 0:02:40]} 11. Bh2 {[%clk 0:02:56]}  Ne4 {[%clk 0:02:29]} 12. Nxe4 {[%clk 0:02:52]}  Bxe4 {[%clk 0:02:30]} 13. Qd2 {[%clk 0:02:38]}  Qc7 {[%clk 0:02:26]} 14. b4 {[%clk 0:02:33]}  Qb7 {[%clk 0:02:13]} 15. Rfc1 {[%clk 0:02:12]}  Rac8 {[%clk 0:02:10]} 1/2-1/2


[Site "https://www.chess.com"]

[Event "Titled Tuesday Blitz March 29 Late 2022"]
[White "Qashashvili, Alexandre"]
[Black "Batsiashvili, Nino"]
[WhiteFideId "13600842"]
[BlackFideId "13602993"]
[WhiteElo "2316"]
[BlackElo "2192"]
[Result "1/2-1/2"]
[Round "05"]
[TimeControl "180+1"]
[Date "2022.03.30"]
[WhiteClock "0:01:23"]
[BlackClock "0:01:55"]

1. e4 {[%clk 0:01:42]}  e5 {[%clk 0:02:58]} 2. Nf3 {[%clk 0:01:41]}  Nc6 {[%clk 0:02:59]} 3. Nc3 {[%clk 0:01:39]}  Nf6 {[%clk 0:02:59]} 4. d4 {[%clk 0:01:39]}  exd4 {[%clk 0:03:00]} 5. Nxd4 {[%clk 0:01:39]}  Bb4 {[%clk 0:03:01]} 6. Nxc6 {[%clk 0:01:39]}  bxc6 {[%clk 0:03:02]} 7. Bd3 {[%clk 0:01:39]}  O-O {[%clk 0:03:02]} 8. O-O {[%clk 0:01:38]}  d5 {[%clk 0:03:02]} 9. exd5 {[%clk 0:01:37]}  Bg4 {[%clk 0:03:02]} 10. Be2 {[%clk 0:01:35]}  Bxe2 {[%clk 0:02:57]} 11. Nxe2 {[%clk 0:01:34]}  cxd5 {[%clk 0:02:56]} 12. c3 {[%clk 0:01:33]}  Bd6 {[%clk 0:02:52]} 13. Bf4 {[%clk 0:01:33]}  c5 {[%clk 0:02:49]} 14. Bxd6 {[%clk 0:01:33]}  Qxd6 {[%clk 0:02:50]} 15. Ng3 {[%clk 0:01:32]}  Rab8 {[%clk 0:02:40]} 16. b3 {[%clk 0:01:32]}  a5 {[%clk 0:02:39]} 17. Nh5 {[%clk 0:01:32]}  Nxh5 {[%clk 0:02:17]} 18. Qxh5 {[%clk 0:01:33]}  d4 {[%clk 0:02:16]} 19. cxd4 {[%clk 0:01:29]}  cxd4 {[%clk 0:02:17]} 20. Qxa5 {[%clk 0:01:26]}  d3 {[%clk 0:02:16]} 21. Qd2 {[%clk 0:01:24]}  Rbc8 {[%clk 0:02:02]} 22. Rac1 {[%clk 0:01:23]}  Qd4 {[%clk 0:01:55]} 1/2-1/2


[Site "https://www.chess.com"]

[Event "Titled Tuesday Blitz March 29 Late 2022"]
[White "Rabineau, Clement"]
[Black "Harish, Neeraj"]
[WhiteFideId "628891"]
[BlackFideId "30958130"]
[WhiteElo "2237"]
[BlackElo "1574"]
[Result "1-0"]
[Round "05"]
[TimeControl "180+1"]
[Date "2022.03.30"]
[WhiteClock "0:00:07"]
[BlackClock "0:00:03"]

1. e4 {[%clk 0:03:00]}  c5 {[%clk 0:02:55]} 2. c3 {[%clk 0:03:01]}  Nf6 {[%clk 0:02:53]} 3. e5 {[%clk 0:03:01]}  Nd5 {[%clk 0:02:53]} 4. Bc4 {[%clk 0:03:02]}  Nb6 {[%clk 0:02:53]} 5. Bb3 {[%clk 0:03:02]}  c4 {[%clk 0:02:46]} 6. Bc2 {[%clk 0:03:03]}  d6 {[%clk 0:02:46]} 7. exd6 {[%clk 0:03:02]}  Qxd6 {[%clk 0:02:47]} 8. Nf3 {[%clk 0:03:02]}  g6 {[%clk 0:02:39]} 9. O-O {[%clk 0:03:00]}  Bg7 {[%clk 0:02:39]} 10. b3 {[%clk 0:03:00]}  O-O {[%clk 0:02:34]} 11. Na3 {[%clk 0:02:59]}  Be6 {[%clk 0:02:29]} 12. Re1 {[%clk 0:02:39]}  Nc6 {[%clk 0:02:20]} 13. Ng5 {[%clk 0:01:22]}  Bd5 {[%clk 0:01:23]} 14. Qg4 {[%clk 0:01:17]}  cxb3 {[%clk 0:00:53]} 15. axb3 {[%clk 0:01:18]}  f5 {[%clk 0:00:51]} 16. Qh4 {[%clk 0:01:18]}  h6 {[%clk 0:00:47]} 17. Nh3 {[%clk 0:00:58]}  g5 {[%clk 0:00:39]} 18. Qg3 {[%clk 0:00:57]}  Be5 {[%clk 0:00:38]} 19. f4 {[%clk 0:00:25]}  Bf6 {[%clk 0:00:19]} 20. d4 {[%clk 0:00:18]}  g4 {[%clk 0:00:18]} 21. Nf2 {[%clk 0:00:17]}  e6 {[%clk 0:00:17]} 22. Nb5 {[%clk 0:00:17]}  Qd7 {[%clk 0:00:16]} 23. Ba3 {[%clk 0:00:17]}  a6 {[%clk 0:00:16]} 24. Bxf8 {[%clk 0:00:16]}  Rxf8 {[%clk 0:00:16]} 25. Na3 {[%clk 0:00:16]}  Na5 {[%clk 0:00:15]} 26. Rab1 {[%clk 0:00:11]}  Qe7 {[%clk 0:00:11]} 27. c4 {[%clk 0:00:09]}  Bh4 {[%clk 0:00:11]} 28. Qe3 {[%clk 0:00:09]}  Bxf2+ {[%clk 0:00:09]} 29. Qxf2 {[%clk 0:00:08]}  Be4 {[%clk 0:00:08]} 30. Bxe4 {[%clk 0:00:07]}  fxe4 {[%clk 0:00:09]} 31. Nc2 {[%clk 0:00:06]}  Nc6 {[%clk 0:00:05]} 32. Rxe4 {[%clk 0:00:06]}  Qd6 {[%clk 0:00:03]} 33. Rbe1 {[%clk 0:00:07]} 1-0


[Site "https://www.chess.com"]

[Event "Titled Tuesday Blitz March 29 Late 2022"]
[White "Rosen, Eric"]
[Black "Meduri, Aakaash"]
[WhiteFideId "2032562"]
[BlackFideId "2032252"]
[WhiteElo "2362"]
[BlackElo "2096"]
[Result "1-0"]
[Round "05"]
[TimeControl "180+1"]
[Date "2022.03.30"]
[WhiteClock "0:00:23"]
[BlackClock "0:00:01"]

1. d4 {[%clk 0:03:00]}  Nf6 {[%clk 0:02:57]} 2. Bf4 {[%clk 0:02:59]}  d6 {[%clk 0:02:54]} 3. Nc3 {[%clk 0:02:58]}  g6 {[%clk 0:02:52]} 4. e4 {[%clk 0:02:58]}  Bg7 {[%clk 0:02:52]} 5. Qd2 {[%clk 0:02:58]}  O-O {[%clk 0:02:49]} 6. O-O-O {[%clk 0:02:58]}  Nbd7 {[%clk 0:02:37]} 7. e5 {[%clk 0:02:49]}  Ne8 {[%clk 0:02:34]} 8. Bh6 {[%clk 0:02:46]}  c6 {[%clk 0:02:25]} 9. h4 {[%clk 0:02:42]}  Qa5 {[%clk 0:02:01]} 10. h5 {[%clk 0:02:21]}  dxe5 {[%clk 0:01:54]} 11. hxg6 {[%clk 0:02:09]}  fxg6 {[%clk 0:01:32]} 12. Bc4+ {[%clk 0:02:07]}  e6 {[%clk 0:01:15]} 13. Bxe6+ {[%clk 0:02:06]}  Kh8 {[%clk 0:01:16]} 14. Bxg7+ {[%clk 0:01:50]}  Nxg7 {[%clk 0:01:16]} 15. Bxd7 {[%clk 0:01:50]}  Bxd7 {[%clk 0:01:13]} 16. Qh6 {[%clk 0:01:50]}  Nh5 {[%clk 0:01:13]} 17. Nf3 {[%clk 0:01:35]}  Rxf3 {[%clk 0:00:39]} 18. gxf3 {[%clk 0:01:31]}  exd4 {[%clk 0:00:23]} 19. Rxd4 {[%clk 0:01:31]}  Qf5 {[%clk 0:00:23]} 20. Ne4 {[%clk 0:01:19]}  Re8 {[%clk 0:00:14]} 21. Rhd1 {[%clk 0:00:50]}  Be6 {[%clk 0:00:13]} 22. Rd8 {[%clk 0:00:45]}  Rxd8 {[%clk 0:00:04]} 23. Rxd8+ {[%clk 0:00:45]}  Bg8 {[%clk 0:00:04]} 24. Ng5 {[%clk 0:00:34]}  Qf4+ {[%clk 0:00:02]} 25. Kb1 {[%clk 0:00:33]}  Qc7 {[%clk 0:00:01]} 26. Qf8 {[%clk 0:00:23]} 1-0


[Site "https://www.chess.com"]

[Event "Titled Tuesday Blitz March 29 Late 2022"]
[White "Sjugirov, Sanan"]
[Black "Lin, Dachey"]
[WhiteFideId "4189302"]
[BlackFideId "2029650"]
[WhiteElo "2602"]
[BlackElo "2313"]
[Result "1-0"]
[Round "05"]
[TimeControl "180+1"]
[Date "2022.03.29"]
[WhiteClock "0:00:04"]
[BlackClock "0:00:03"]

1. d4 {[%clk 0:03:00]}  g6 {[%clk 0:03:00]} 2. c4 {[%clk 0:03:00]}  Bg7 {[%clk 0:03:01]} 3. Nf3 {[%clk 0:03:00]}  c5 {[%clk 0:03:01]} 4. d5 {[%clk 0:03:00]}  d6 {[%clk 0:03:01]} 5. e4 {[%clk 0:02:59]}  Nf6 {[%clk 0:03:02]} 6. Nc3 {[%clk 0:02:59]}  e6 {[%clk 0:03:02]} 7. h3 {[%clk 0:02:59]}  exd5 {[%clk 0:03:03]} 8. exd5 {[%clk 0:02:59]}  O-O {[%clk 0:03:04]} 9. Be2 {[%clk 0:02:53]}  Na6 {[%clk 0:03:03]} 10. O-O {[%clk 0:02:52]}  Nc7 {[%clk 0:03:00]} 11. Bd3 {[%clk 0:02:51]}  a6 {[%clk 0:02:59]} 12. a4 {[%clk 0:02:50]}  Rb8 {[%clk 0:03:00]} 13. Bf4 {[%clk 0:02:48]}  b5 {[%clk 0:02:51]} 14. axb5 {[%clk 0:02:39]}  axb5 {[%clk 0:02:51]} 15. cxb5 {[%clk 0:02:31]}  Nfxd5 {[%clk 0:02:47]} 16. Bg5 {[%clk 0:02:31]}  Bf6 {[%clk 0:02:21]} 17. Bh6 {[%clk 0:02:16]}  Nxc3 {[%clk 0:02:19]} 18. bxc3 {[%clk 0:02:16]}  Re8 {[%clk 0:02:20]} 19. c4 {[%clk 0:01:56]}  d5 {[%clk 0:02:01]} 20. Ra7 {[%clk 0:01:51]}  dxc4 {[%clk 0:01:45]} 21. Bxc4 {[%clk 0:01:52]}  Be6 {[%clk 0:01:46]} 22. Qxd8 {[%clk 0:01:44]}  Rexd8 {[%clk 0:01:34]} 23. Bxe6 {[%clk 0:01:22]}  Nxe6 {[%clk 0:01:34]} 24. Rb1 {[%clk 0:01:22]}  c4 {[%clk 0:01:26]} 25. b6 {[%clk 0:00:51]}  c3 {[%clk 0:01:26]} 26. b7 {[%clk 0:00:51]}  c2 {[%clk 0:01:24]} 27. Rc1 {[%clk 0:00:50]}  Nd4 {[%clk 0:00:49]} 28. Nxd4 {[%clk 0:00:26]}  Bxd4 {[%clk 0:00:48]} 29. Ra4 {[%clk 0:00:27]}  Bg7 {[%clk 0:00:37]} 30. Bf4 {[%clk 0:00:11]}  Rd1+ {[%clk 0:00:33]} 31. Kh2 {[%clk 0:00:11]}  Rxc1 {[%clk 0:00:34]} 32. Bxc1 {[%clk 0:00:11]}  Bf8 {[%clk 0:00:22]} 33. Ra7 {[%clk 0:00:07]}  Kg7 {[%clk 0:00:20]} 34. Bf4 {[%clk 0:00:03]}  Bc5 {[%clk 0:00:10]} 35. Bxb8 {[%clk 0:00:03]}  c1=Q {[%clk 0:00:06]} 36. Be5+ {[%clk 0:00:04]}  Kh6 {[%clk 0:00:05]} 37. b8=Q {[%clk 0:00:04]}  Bxf2 {[%clk 0:00:03]} 38. Bf4+ {[%clk 0:00:04]} 1-0


[Site "https://www.chess.com"]

[Event "Titled Tuesday Blitz March 29 Late 2022"]
[White "Srinath, Rao S.V."]
[Black "Aydin, Gulenay"]
[WhiteFideId "5028876"]
[BlackFideId "34557431"]
[WhiteElo "2181"]
[BlackElo "1429"]
[Result "0-1"]
[Round "05"]
[TimeControl "180+1"]
[Date "2022.03.30"]
[WhiteClock "0:00:48"]
[BlackClock "0:00:11"]

1. e4 {[%clk 0:03:00]}  c5 {[%clk 0:02:59]} 2. Nf3 {[%clk 0:03:00]}  d6 {[%clk 0:03:00]} 3. d4 {[%clk 0:03:01]}  cxd4 {[%clk 0:03:01]} 4. Nxd4 {[%clk 0:03:01]}  Nf6 {[%clk 0:03:01]} 5. Nc3 {[%clk 0:03:01]}  g6 {[%clk 0:03:02]} 6. g3 {[%clk 0:03:01]}  Bg7 {[%clk 0:03:02]} 7. Bg2 {[%clk 0:03:02]}  O-O {[%clk 0:03:03]} 8. O-O {[%clk 0:03:02]}  Qc7 {[%clk 0:02:55]} 9. h3 {[%clk 0:03:01]}  Nc6 {[%clk 0:02:55]} 10. Nde2 {[%clk 0:02:56]}  Rb8 {[%clk 0:02:51]} 11. Be3 {[%clk 0:02:55]}  a6 {[%clk 0:02:48]} 12. Rb1 {[%clk 0:02:38]}  Ne5 {[%clk 0:02:40]} 13. b3 {[%clk 0:02:26]}  b5 {[%clk 0:02:31]} 14. f4 {[%clk 0:02:26]}  Ned7 {[%clk 0:02:22]} 15. g4 {[%clk 0:02:07]}  Bb7 {[%clk 0:02:14]} 16. g5 {[%clk 0:02:04]}  Ne8 {[%clk 0:01:28]} 17. Nd5 {[%clk 0:01:49]}  Bxd5 {[%clk 0:01:28]} 18. exd5 {[%clk 0:01:50]}  Nc5 {[%clk 0:01:11]} 19. Bd4 {[%clk 0:01:44]}  Rc8 {[%clk 0:00:48]} 20. f5 {[%clk 0:01:41]}  Be5 {[%clk 0:00:42]} 21. f6 {[%clk 0:01:29]}  exf6 {[%clk 0:00:39]} 22. gxf6 {[%clk 0:01:29]}  Nd7 {[%clk 0:00:38]} 23. Bxe5 {[%clk 0:01:22]}  dxe5 {[%clk 0:00:35]} 24. Rc1 {[%clk 0:01:10]}  Ndxf6 {[%clk 0:00:18]} 25. c4 {[%clk 0:01:10]}  bxc4 {[%clk 0:00:17]} 26. bxc4 {[%clk 0:01:11]}  Qc5+ {[%clk 0:00:17]} 27. Kh1 {[%clk 0:01:09]}  Nh5 {[%clk 0:00:16]} 28. Qd2 {[%clk 0:01:04]}  Nd6 {[%clk 0:00:15]} 29. Bf3 {[%clk 0:00:55]}  Nxc4 {[%clk 0:00:12]} 30. Qh6 {[%clk 0:00:51]}  Qe3 {[%clk 0:00:12]} 31. Bxh5 {[%clk 0:00:49]}  Qxh6 {[%clk 0:00:11]} 32. Bg4 {[%clk 0:00:48]}  f5 {[%clk 0:00:11]} 0-1


[Site "https://www.chess.com"]

[Event "Titled Tuesday Blitz March 29 Late 2022"]
[White "Svane, Rasmus"]
[Black "Jaferian, Koosha"]
[WhiteFideId "4657101"]
[BlackFideId "12507440"]
[WhiteElo "2645"]
[BlackElo "2030"]
[Result "1-0"]
[Round "05"]
[TimeControl "180+1"]
[Date "2022.03.29"]
[WhiteClock "0:02:13"]
[BlackClock "0:02:11"]

1. Nf3 {[%clk 0:02:56]}  d5 {[%clk 0:02:59]} 2. g3 {[%clk 0:02:57]}  g6 {[%clk 0:03:00]} 3. Bg2 {[%clk 0:02:56]}  Bg7 {[%clk 0:03:00]} 4. d4 {[%clk 0:02:56]}  Nf6 {[%clk 0:02:59]} 5. O-O {[%clk 0:02:57]}  O-O {[%clk 0:03:00]} 6. c3 {[%clk 0:02:57]}  c6 {[%clk 0:03:00]} 7. Re1 {[%clk 0:02:57]}  Bf5 {[%clk 0:03:00]} 8. Nbd2 {[%clk 0:02:58]}  Ne4 {[%clk 0:03:01]} 9. Nh4 {[%clk 0:02:58]}  Nxd2 {[%clk 0:03:01]} 10. Bxd2 {[%clk 0:02:59]}  Be6 {[%clk 0:02:58]} 11. e4 {[%clk 0:02:59]}  dxe4 {[%clk 0:02:59]} 12. Bxe4 {[%clk 0:03:00]}  Nd7 {[%clk 0:02:59]} 13. Bg2 {[%clk 0:02:55]}  Nf6 {[%clk 0:02:59]} 14. Nf3 {[%clk 0:02:54]}  Bd5 {[%clk 0:02:58]} 15. Bf4 {[%clk 0:02:48]}  Qb6 {[%clk 0:02:56]} 16. Qe2 {[%clk 0:02:42]}  Rfe8 {[%clk 0:02:50]} 17. h4 {[%clk 0:02:35]}  Rad8 {[%clk 0:02:38]} 18. Be5 {[%clk 0:02:31]}  Nd7 {[%clk 0:02:27]} 19. Bxg7 {[%clk 0:02:26]}  Kxg7 {[%clk 0:02:27]} 20. h5 {[%clk 0:02:26]}  Nf6 {[%clk 0:02:20]} 21. hxg6 {[%clk 0:02:21]}  hxg6 {[%clk 0:02:21]} 22. Ne5 {[%clk 0:02:17]}  Bxg2 {[%clk 0:02:20]} 23. Kxg2 {[%clk 0:02:18]}  Rh8 {[%clk 0:02:11]} 24. Nxf7 {[%clk 0:02:13]} 1-0


[Site "https://www.chess.com"]